[Event "Titled Tuesday Blitz April 05 Early 2022"]
[White "Gatineau, Yovann"]
[Black "Matveeva, Olga"]
[WhiteFideId "26028999"]
[BlackFideId "24107018"]
[WhiteElo "2183"]
[BlackElo "2083"]
[Result "1-0"]
[Round "01"]
[TimeControl "180+1"]
[Date "2022.04.05"]
[WhiteClock "0:00:44"]
[BlackClock "0:01:03"]

1. e4 {[%clk 0:02:59]}  e6 {[%clk 0:02:59]} 2. d4 {[%clk 0:02:58]}  d5 {[%clk 0:02:59]} 3. Nc3 {[%clk 0:02:58]}  Nf6 {[%clk 0:02:58]} 4. Bg5 {[%clk 0:02:58]}  Bb4 {[%clk 0:02:57]} 5. Ne2 {[%clk 0:02:36]}  h6 {[%clk 0:02:39]} 6. Bxf6 {[%clk 0:02:29]}  Qxf6 {[%clk 0:02:40]} 7. a3 {[%clk 0:02:30]}  Bxc3+ {[%clk 0:02:34]} 8. Nxc3 {[%clk 0:02:31]}  dxe4 {[%clk 0:02:26]} 9. Nxe4 {[%clk 0:02:31]}  Qg6 {[%clk 0:02:23]} 10. Qf3 {[%clk 0:02:29]}  O-O {[%clk 0:02:16]} 11. O-O-O {[%clk 0:02:22]}  Bd7 {[%clk 0:01:58]} 12. Qe3 {[%clk 0:02:09]}  Bc6 {[%clk 0:01:56]} 13. Bd3 {[%clk 0:02:03]}  Qh5 {[%clk 0:01:49]} 14. g4 {[%clk 0:01:51]}  Qxg4 {[%clk 0:01:43]} 15. Rhg1 {[%clk 0:01:31]}  Qh4 {[%clk 0:01:41]} 16. Rg3 {[%clk 0:00:58]}  Nd7 {[%clk 0:01:38]} 17. Rdg1 {[%clk 0:00:58]}  Kh8 {[%clk 0:01:03]} 18. Rh3 {[%clk 0:00:44]} 1-0


[Site "https://www.chess.com"]

[Event "Titled Tuesday Blitz April 05 Early 2022"]
[White "Goryachkina, Aleksandra"]
[Black "Hoffmann, Asa"]
[WhiteFideId "4147103"]
[BlackFideId "2001470"]
[WhiteElo "2426"]
[BlackElo "2117"]
[Result "1-0"]
[Round "01"]
[TimeControl "180+1"]
[Date "2022.04.05"]
[WhiteClock "0:00:18"]
[BlackClock "0:00:41"]

1. e4 {[%clk 0:02:59]}  d6 {[%clk 0:02:51]} 2. d4 {[%clk 0:02:58]}  Nf6 {[%clk 0:02:50]} 3. Nc3 {[%clk 0:02:58]}  c6 {[%clk 0:02:49]} 4. Nf3 {[%clk 0:02:55]}  Bg4 {[%clk 0:02:49]} 5. Be3 {[%clk 0:02:44]}  e6 {[%clk 0:02:48]} 6. h3 {[%clk 0:02:42]}  Bh5 {[%clk 0:02:48]} 7. Be2 {[%clk 0:02:35]}  d5 {[%clk 0:02:47]} 8. exd5 {[%clk 0:01:59]}  cxd5 {[%clk 0:02:47]} 9. O-O {[%clk 0:01:54]}  Nc6 {[%clk 0:02:46]} 10. Ne5 {[%clk 0:01:47]}  Bxe2 {[%clk 0:02:44]} 11. Nxe2 {[%clk 0:01:39]}  Bd6 {[%clk 0:02:42]} 12. Nd3 {[%clk 0:01:32]}  O-O {[%clk 0:02:33]} 13. c3 {[%clk 0:01:30]}  Rb8 {[%clk 0:02:28]} 14. a4 {[%clk 0:01:27]}  b6 {[%clk 0:02:26]} 15. Bf4 {[%clk 0:01:26]}  Ne4 {[%clk 0:02:24]} 16. f3 {[%clk 0:01:20]}  Nf6 {[%clk 0:02:21]} 17. Qd2 {[%clk 0:01:19]}  Na5 {[%clk 0:02:16]} 18. Rae1 {[%clk 0:01:07]}  Qd7 {[%clk 0:02:11]} 19. Bxd6 {[%clk 0:01:02]}  Qxd6 {[%clk 0:02:11]} 20. Qg5 {[%clk 0:00:56]}  h6 {[%clk 0:02:09]} 21. Qh4 {[%clk 0:00:55]}  Qc6 {[%clk 0:02:02]} 22. g4 {[%clk 0:00:33]}  Qxa4 {[%clk 0:01:57]} 23. f4 {[%clk 0:00:25]}  Ne4 {[%clk 0:01:56]} 24. g5 {[%clk 0:00:24]}  hxg5 {[%clk 0:01:42]} 25. fxg5 {[%clk 0:00:24]}  Nc4 {[%clk 0:01:37]} 26. Nef4 {[%clk 0:00:21]}  Qd7 {[%clk 0:01:18]} 27. g6 {[%clk 0:00:18]}  fxg6 {[%clk 0:01:16]} 28. Nxg6 {[%clk 0:00:18]}  Rxf1+ {[%clk 0:00:58]} 29. Rxf1 {[%clk 0:00:19]}  Nf6 {[%clk 0:00:58]} 30. Qh8+ {[%clk 0:00:17]}  Kf7 {[%clk 0:00:57]} 31. Nde5+ {[%clk 0:00:17]}  Nxe5 {[%clk 0:00:57]} 32. Nxe5+ {[%clk 0:00:17]}  Ke7 {[%clk 0:00:54]} 33. Qxg7+ {[%clk 0:00:17]}  Kd6 {[%clk 0:00:53]} 34. Nxd7 {[%clk 0:00:17]}  Nxd7 {[%clk 0:00:52]} 35. Qg3+ {[%clk 0:00:16]}  Kc6 {[%clk 0:00:51]} 36. Rf7 {[%clk 0:00:16]}  Rb7 {[%clk 0:00:47]} 37. Re7 {[%clk 0:00:16]}  a5 {[%clk 0:00:44]} 38. Rxe6+ {[%clk 0:00:17]}  Kb5 {[%clk 0:00:44]} 39. Qd6 {[%clk 0:00:17]}  Nb8 {[%clk 0:00:43]} 40. Qxd5+ {[%clk 0:00:17]}  Ka6 {[%clk 0:00:42]} 41. Qxb7+ {[%clk 0:00:17]}  Kxb7 {[%clk 0:00:41]} 42. h4 {[%clk 0:00:17]}  Nd7 {[%clk 0:00:41]} 43. h5 {[%clk 0:00:18]} 1-0


[Site "https://www.chess.com"]

[Event "Titled Tuesday Blitz April 05 Early 2022"]
[White "Gu, Xiaobing"]
[Black "Adewumi, Tanitoluwa"]
[WhiteFideId "8602611"]
[BlackFideId "30966396"]
[WhiteElo "2174"]
[BlackElo "2593"]
[Result "0-1"]
[Round "01"]
[TimeControl "180+1"]
[Date "2022.04.05"]
[WhiteClock "0:00:04"]
[BlackClock "0:00:05"]

1. e4 {[%clk 0:02:57]}  c5 {[%clk 0:02:58]} 2. Nf3 {[%clk 0:02:57]}  g6 {[%clk 0:02:43]} 3. d4 {[%clk 0:02:49]}  cxd4 {[%clk 0:02:30]} 4. Nxd4 {[%clk 0:02:49]}  Bg7 {[%clk 0:02:29]} 5. c4 {[%clk 0:02:49]}  Nc6 {[%clk 0:02:28]} 6. Be3 {[%clk 0:02:47]}  d6 {[%clk 0:02:28]} 7. Nc3 {[%clk 0:02:47]}  Nf6 {[%clk 0:02:28]} 8. Be2 {[%clk 0:02:45]}  O-O {[%clk 0:02:10]} 9. O-O {[%clk 0:02:45]}  Bd7 {[%clk 0:02:04]} 10. Qd2 {[%clk 0:02:28]}  Nxd4 {[%clk 0:02:02]} 11. Bxd4 {[%clk 0:02:27]}  Bc6 {[%clk 0:02:03]} 12. Rad1 {[%clk 0:02:02]}  a6 {[%clk 0:01:53]} 13. f4 {[%clk 0:01:58]}  Qc7 {[%clk 0:01:39]} 14. Bf3 {[%clk 0:01:55]}  Rad8 {[%clk 0:01:26]} 15. Rfe1 {[%clk 0:01:50]}  e5 {[%clk 0:01:25]} 16. Be3 {[%clk 0:01:43]}  exf4 {[%clk 0:01:25]} 17. Bxf4 {[%clk 0:01:42]}  Ne8 {[%clk 0:00:50]} 18. b3 {[%clk 0:01:04]}  Qb6+ {[%clk 0:00:20]} 19. Kh1 {[%clk 0:01:03]}  Kh8 {[%clk 0:00:18]} 20. Bg5 {[%clk 0:00:52]}  Nf6 {[%clk 0:00:14]} 21. Qf4 {[%clk 0:00:40]}  Nd7 {[%clk 0:00:06]} 22. Bxd8 {[%clk 0:00:34]}  Qxd8 {[%clk 0:00:07]} 23. Nd5 {[%clk 0:00:33]}  Ne5 {[%clk 0:00:06]} 24. Qe3 {[%clk 0:00:23]}  f5 {[%clk 0:00:03]} 25. exf5 {[%clk 0:00:20]}  Rxf5 {[%clk 0:00:04]} 26. Qb6 {[%clk 0:00:16]}  Qxb6 {[%clk 0:00:02]} 27. Nxb6 {[%clk 0:00:16]}  Nxf3 {[%clk 0:00:03]} 28. gxf3 {[%clk 0:00:14]}  Bxf3+ {[%clk 0:00:03]} 29. Kg1 {[%clk 0:00:14]}  Bxd1 {[%clk 0:00:04]} 30. Rxd1 {[%clk 0:00:14]}  Rg5+ {[%clk 0:00:05]} 31. Kf1 {[%clk 0:00:13]}  Be5 {[%clk 0:00:05]} 32. h4 {[%clk 0:00:11]}  Rg4 {[%clk 0:00:05]} 33. Nd7 {[%clk 0:00:10]}  Rxh4 {[%clk 0:00:04]} 34. Nxe5 {[%clk 0:00:10]}  dxe5 {[%clk 0:00:05]} 35. Rd8+ {[%clk 0:00:10]}  Kg7 {[%clk 0:00:06]} 36. Rd7+ {[%clk 0:00:10]}  Kf6 {[%clk 0:00:07]} 37. Rxb7 {[%clk 0:00:09]}  Rh2 {[%clk 0:00:07]} 38. Rb6+ {[%clk 0:00:09]}  Kf5 {[%clk 0:00:08]} 39. Rxa6 {[%clk 0:00:10]}  h5 {[%clk 0:00:08]} 40. c5 {[%clk 0:00:10]}  Rc2 {[%clk 0:00:08]} 41. c6 {[%clk 0:00:10]}  h4 {[%clk 0:00:09]} 42. b4 {[%clk 0:00:10]}  h3 {[%clk 0:00:09]} 43. Kg1 {[%clk 0:00:09]}  h2+ {[%clk 0:00:09]} 44. Kh1 {[%clk 0:00:08]}  Kg4 {[%clk 0:00:10]} 45. b5 {[%clk 0:00:08]}  e4 {[%clk 0:00:09]} 46. Ra3 {[%clk 0:00:08]}  Kf4 {[%clk 0:00:08]} 47. Rh3 {[%clk 0:00:06]}  e3 {[%clk 0:00:08]} 48. c7 {[%clk 0:00:04]}  e2 {[%clk 0:00:05]} 0-1


[Site "https://www.chess.com"]

[Event "Titled Tuesday Blitz April 05 Early 2022"]
[White "Hamley, Ryan"]
[Black "Dovbnia, Nikita"]
[WhiteFideId "30959497"]
[BlackFideId "54104599"]
[WhiteElo "2542"]
[BlackElo "2111"]
[Result "1-0"]
[Round "01"]
[TimeControl "180+1"]
[Date "2022.04.05"]
[WhiteClock "0:01:03"]
[BlackClock "0:01:12"]

1. d4 {[%clk 0:02:59]}  Nf6 {[%clk 0:02:58]} 2. Nf3 {[%clk 0:02:58]}  e6 {[%clk 0:02:58]} 3. Bf4 {[%clk 0:02:58]}  d5 {[%clk 0:02:58]} 4. e3 {[%clk 0:02:58]}  Bd6 {[%clk 0:02:58]} 5. Bg3 {[%clk 0:02:57]}  O-O {[%clk 0:02:58]} 6. Bd3 {[%clk 0:02:57]}  c5 {[%clk 0:02:59]} 7. c3 {[%clk 0:02:57]}  Nc6 {[%clk 0:02:56]} 8. Nbd2 {[%clk 0:02:57]}  Qc7 {[%clk 0:02:55]} 9. O-O {[%clk 0:02:56]}  Bxg3 {[%clk 0:02:55]} 10. hxg3 {[%clk 0:02:56]}  b6 {[%clk 0:02:56]} 11. Qe2 {[%clk 0:02:54]}  Bb7 {[%clk 0:02:56]} 12. Rac1 {[%clk 0:02:53]}  Rac8 {[%clk 0:02:55]} 13. Rfd1 {[%clk 0:02:52]}  Rfe8 {[%clk 0:02:52]} 14. e4 {[%clk 0:02:46]}  dxe4 {[%clk 0:02:45]} 15. Nxe4 {[%clk 0:02:47]}  Nxe4 {[%clk 0:02:45]} 16. Bxe4 {[%clk 0:02:48]}  Qb8 {[%clk 0:02:41]} 17. Ng5 {[%clk 0:02:39]}  h6 {[%clk 0:02:36]} 18. Nf3 {[%clk 0:02:34]}  Red8 {[%clk 0:02:24]} 19. dxc5 {[%clk 0:02:31]}  bxc5 {[%clk 0:02:23]} 20. b3 {[%clk 0:02:29]}  Ne7 {[%clk 0:02:12]} 21. Ne5 {[%clk 0:02:22]}  Nd5 {[%clk 0:02:05]} 22. Nc4 {[%clk 0:02:18]}  Rc7 {[%clk 0:01:52]} 23. Bb1 {[%clk 0:01:52]}  Rcd7 {[%clk 0:01:44]} 24. Rd3 {[%clk 0:01:35]}  Nf6 {[%clk 0:01:40]} 25. Rcd1 {[%clk 0:01:32]}  Rxd3 {[%clk 0:01:34]} 26. Rxd3 {[%clk 0:01:33]}  Rxd3 {[%clk 0:01:34]} 27. Bxd3 {[%clk 0:01:34]}  Nd5 {[%clk 0:01:28]} 28. Qe4 {[%clk 0:01:32]}  Nf6 {[%clk 0:01:27]} 29. Qe3 {[%clk 0:01:30]}  Nd5 {[%clk 0:01:27]} 30. Qxc5 {[%clk 0:01:29]}  Nxc3 {[%clk 0:01:26]} 31. Na5 {[%clk 0:01:16]}  Nd5 {[%clk 0:01:14]} 32. Qb5 {[%clk 0:01:08]}  Nb6 {[%clk 0:01:12]} 33. Nxb7 {[%clk 0:01:04]}  Qxb7 {[%clk 0:01:12]} 34. Qe8# {[%clk 0:01:03]} 1-0


[Site "https://www.chess.com"]

[Event "Titled Tuesday Blitz April 05 Early 2022"]
[White "Harshavardhan G B"]
[Black "Petrova, Irina"]
[WhiteFideId "25059009"]
[BlackFideId "14124122"]
[WhiteElo "1831"]
[BlackElo "1993"]
[Result "1-0"]
[Round "01"]
[TimeControl "180+1"]
[Date "2022.04.05"]
[WhiteClock "0:00:45"]
[BlackClock "0:00:11"]

1. Nf3 {[%clk 0:03:00]}  d6 {[%clk 0:02:59]} 2. g3 {[%clk 0:02:59]}  e5 {[%clk 0:02:58]} 3. d3 {[%clk 0:02:58]}  f5 {[%clk 0:02:58]} 4. Bg2 {[%clk 0:02:58]}  Nf6 {[%clk 0:02:57]} 5. O-O {[%clk 0:02:58]}  Nc6 {[%clk 0:02:57]} 6. c4 {[%clk 0:02:58]}  g6 {[%clk 0:02:56]} 7. Nc3 {[%clk 0:02:57]}  Bg7 {[%clk 0:02:56]} 8. Rb1 {[%clk 0:02:58]}  O-O {[%clk 0:02:54]} 9. b4 {[%clk 0:02:57]}  h6 {[%clk 0:02:54]} 10. b5 {[%clk 0:02:55]}  Ne7 {[%clk 0:02:54]} 11. a4 {[%clk 0:02:52]}  g5 {[%clk 0:02:50]} 12. Ba3 {[%clk 0:02:47]}  f4 {[%clk 0:02:45]} 13. Nd2 {[%clk 0:02:41]}  Qe8 {[%clk 0:02:34]} 14. e3 {[%clk 0:02:34]}  Nf5 {[%clk 0:02:19]} 15. Qe2 {[%clk 0:02:21]}  Rb8 {[%clk 0:01:43]} 16. a5 {[%clk 0:02:14]}  Qg6 {[%clk 0:01:26]} 17. b6 {[%clk 0:02:04]}  axb6 {[%clk 0:01:15]} 18. axb6 {[%clk 0:02:05]}  c5 {[%clk 0:01:13]} 19. Nde4 {[%clk 0:02:02]}  Nxe4 {[%clk 0:01:09]} 20. Bxe4 {[%clk 0:02:01]}  g4 {[%clk 0:01:04]} 21. f3 {[%clk 0:01:40]}  fxg3 {[%clk 0:00:49]} 22. fxg4 {[%clk 0:01:36]}  gxh2+ {[%clk 0:00:48]} 23. Kxh2 {[%clk 0:01:36]}  Qg5 {[%clk 0:00:28]} 24. gxf5 {[%clk 0:01:09]}  Qh4+ {[%clk 0:00:27]} 25. Kg2 {[%clk 0:01:06]}  Qg5+ {[%clk 0:00:26]} 26. Kh1 {[%clk 0:01:06]}  Bxf5 {[%clk 0:00:23]} 27. Bxf5 {[%clk 0:01:03]}  Rxf5 {[%clk 0:00:24]} 28. Ne4 {[%clk 0:01:04]}  Qh4+ {[%clk 0:00:17]} 29. Qh2 {[%clk 0:01:03]}  Rxf1+ {[%clk 0:00:15]} 30. Rxf1 {[%clk 0:01:02]}  Qe7 {[%clk 0:00:16]} 31. Kg2 {[%clk 0:00:51]}  Rf8 {[%clk 0:00:16]} 32. Rxf8+ {[%clk 0:00:50]}  Qxf8 {[%clk 0:00:17]} 33. Qh5 {[%clk 0:00:48]}  Qd8 {[%clk 0:00:17]} 34. Qg6 {[%clk 0:00:45]}  Kf8 {[%clk 0:00:14]} 35. Qxd6+ {[%clk 0:00:44]}  Qxd6 {[%clk 0:00:11]} 36. Nxd6 {[%clk 0:00:45]} 1-0


[Site "https://www.chess.com"]

[Event "Titled Tuesday Blitz April 05 Early 2022"]
[White "Heinemann, Josefine"]
[Black "Sonis, Francesco"]
[WhiteFideId "12900460"]
[BlackFideId "895733"]
[WhiteElo "2451"]
[BlackElo "2790"]
[Result "0-1"]
[Round "01"]
[TimeControl "180+1"]
[Date "2022.04.05"]
[WhiteClock "0:00:18"]
[BlackClock "0:01:05"]

1. Nf3 {[%clk 0:02:58]}  Nf6 {[%clk 0:03:00]} 2. g3 {[%clk 0:02:58]}  g6 {[%clk 0:03:00]} 3. Bg2 {[%clk 0:02:58]}  Bg7 {[%clk 0:03:01]} 4. O-O {[%clk 0:02:59]}  O-O {[%clk 0:03:01]} 5. d4 {[%clk 0:02:59]}  c5 {[%clk 0:03:00]} 6. c4 {[%clk 0:02:58]}  d6 {[%clk 0:02:56]} 7. Nc3 {[%clk 0:02:57]}  cxd4 {[%clk 0:02:57]} 8. Nxd4 {[%clk 0:02:57]}  Nc6 {[%clk 0:02:57]} 9. Nxc6 {[%clk 0:02:55]}  bxc6 {[%clk 0:02:58]} 10. Bxc6 {[%clk 0:02:56]}  Rb8 {[%clk 0:02:56]} 11. Bg2 {[%clk 0:02:56]}  Qa5 {[%clk 0:02:55]} 12. Qc2 {[%clk 0:02:45]}  Bf5 {[%clk 0:02:54]} 13. e4 {[%clk 0:02:43]}  Be6 {[%clk 0:02:54]} 14. b3 {[%clk 0:02:40]}  Nxe4 {[%clk 0:02:49]} 15. Bxe4 {[%clk 0:02:36]}  Qxc3 {[%clk 0:02:48]} 16. Qxc3 {[%clk 0:02:33]}  Bxc3 {[%clk 0:02:49]} 17. Bh6 {[%clk 0:02:24]}  Rfc8 {[%clk 0:02:21]} 18. Rac1 {[%clk 0:02:22]}  Bf6 {[%clk 0:02:20]} 19. Be3 {[%clk 0:02:21]}  Rc7 {[%clk 0:02:17]} 20. f4 {[%clk 0:02:12]}  a5 {[%clk 0:02:16]} 21. Kg2 {[%clk 0:01:40]}  a4 {[%clk 0:02:15]} 22. Rb1 {[%clk 0:01:39]}  axb3 {[%clk 0:02:11]} 23. axb3 {[%clk 0:01:40]}  Bc8 {[%clk 0:01:57]} 24. Rfd1 {[%clk 0:01:06]}  Bb7 {[%clk 0:01:55]} 25. Bxb7 {[%clk 0:01:06]}  Rcxb7 {[%clk 0:01:53]} 26. Rd3 {[%clk 0:01:06]}  Rc8 {[%clk 0:01:50]} 27. Kf3 {[%clk 0:01:03]}  Rxc4 {[%clk 0:01:48]} 28. bxc4 {[%clk 0:00:59]}  Rxb1 {[%clk 0:01:49]} 29. c5 {[%clk 0:00:59]}  dxc5 {[%clk 0:01:46]} 30. Bxc5 {[%clk 0:00:59]}  Kg7 {[%clk 0:01:44]} 31. Bd4 {[%clk 0:00:56]}  Bxd4 {[%clk 0:01:41]} 32. Rxd4 {[%clk 0:00:56]}  Rb3+ {[%clk 0:01:39]} 33. Kg4 {[%clk 0:00:50]}  Rb2 {[%clk 0:01:36]} 34. Kh3 {[%clk 0:00:42]}  h5 {[%clk 0:01:34]} 35. Rd7 {[%clk 0:00:42]}  Kf8 {[%clk 0:01:28]} 36. Rd8+ {[%clk 0:00:41]}  Kg7 {[%clk 0:01:28]} 37. Rd7 {[%clk 0:00:42]}  Kf6 {[%clk 0:01:29]} 38. Ra7 {[%clk 0:00:41]}  Re2 {[%clk 0:01:24]} 39. Rb7 {[%clk 0:00:37]}  Kg7 {[%clk 0:01:23]} 40. Rb5 {[%clk 0:00:33]}  f6 {[%clk 0:01:22]} 41. Ra5 {[%clk 0:00:33]}  Kh6 {[%clk 0:01:22]} 42. Ra6 {[%clk 0:00:33]}  e5 {[%clk 0:01:20]} 43. fxe5 {[%clk 0:00:31]}  fxe5 {[%clk 0:01:20]} 44. Rb6 {[%clk 0:00:24]}  Kg5 {[%clk 0:01:19]} 45. Rc6 {[%clk 0:00:23]}  Kf5 {[%clk 0:01:19]} 46. Rc8 {[%clk 0:00:23]}  g5 {[%clk 0:01:19]} 47. Rf8+ {[%clk 0:00:22]}  Kg6 {[%clk 0:01:19]} 48. g4 {[%clk 0:00:18]}  Re3+ {[%clk 0:01:19]} 49. Kg2 {[%clk 0:00:19]}  hxg4 {[%clk 0:01:07]} 50. Kf2 {[%clk 0:00:18]}  Rf3+ {[%clk 0:01:06]} 51. Kg2 {[%clk 0:00:18]}  Rxf8 {[%clk 0:01:05]} 0-1


[Site "https://www.chess.com"]

[Event "Titled Tuesday Blitz April 05 Early 2022"]
[White "Hernandez Jimenez, Alexander Andres"]
[Black "Jakubowski, Krzysztof"]
[WhiteFideId "3900452"]
[BlackFideId "1112848"]
[WhiteElo "2098"]
[BlackElo "2365"]
[Result "0-1"]
[Round "01"]
[TimeControl "180+1"]
[Date "2022.04.05"]
[WhiteClock "0:01:48"]
[BlackClock "0:01:21"]

1. e4 {[%clk 0:03:00]}  e5 {[%clk 0:02:58]} 2. Nf3 {[%clk 0:03:00]}  Nc6 {[%clk 0:02:57]} 3. Bc4 {[%clk 0:03:00]}  Bc5 {[%clk 0:02:56]} 4. d3 {[%clk 0:03:00]}  d6 {[%clk 0:02:55]} 5. c3 {[%clk 0:03:00]}  a6 {[%clk 0:02:53]} 6. a4 {[%clk 0:02:58]}  Ba7 {[%clk 0:02:51]} 7. O-O {[%clk 0:02:57]}  Nf6 {[%clk 0:02:49]} 8. h3 {[%clk 0:02:44]}  h6 {[%clk 0:02:45]} 9. Re1 {[%clk 0:02:43]}  O-O {[%clk 0:02:40]} 10. Nbd2 {[%clk 0:02:43]}  Ne7 {[%clk 0:02:33]} 11. Nf1 {[%clk 0:02:42]}  Ng6 {[%clk 0:02:32]} 12. Be3 {[%clk 0:02:42]}  Re8 {[%clk 0:02:17]} 13. Bxa7 {[%clk 0:02:40]}  Rxa7 {[%clk 0:02:18]} 14. Ng3 {[%clk 0:02:32]}  Ra8 {[%clk 0:02:16]} 15. d4 {[%clk 0:02:30]}  c6 {[%clk 0:02:13]} 16. dxe5 {[%clk 0:02:27]}  dxe5 {[%clk 0:02:11]} 17. Qb3 {[%clk 0:02:27]}  Qc7 {[%clk 0:02:08]} 18. Rad1 {[%clk 0:02:25]}  Nf4 {[%clk 0:02:04]} 19. Nf5 {[%clk 0:02:24]}  Bxf5 {[%clk 0:01:59]} 20. exf5 {[%clk 0:02:24]}  e4 {[%clk 0:01:57]} 21. Nd4 {[%clk 0:02:20]}  Re7 {[%clk 0:01:52]} 22. Ne2 {[%clk 0:02:16]}  b5 {[%clk 0:01:37]} 23. axb5 {[%clk 0:02:13]}  axb5 {[%clk 0:01:37]} 24. Nxf4 {[%clk 0:02:08]}  bxc4 {[%clk 0:01:36]} 25. Qxc4 {[%clk 0:02:08]}  Qxf4 {[%clk 0:01:36]} 26. Qxc6 {[%clk 0:02:08]}  Rae8 {[%clk 0:01:36]} 27. b4 {[%clk 0:02:04]}  Qxf5 {[%clk 0:01:35]} 28. b5 {[%clk 0:02:05]}  Rc8 {[%clk 0:01:35]} 29. Qa6 {[%clk 0:01:59]}  Rb8 {[%clk 0:01:26]} 30. b6 {[%clk 0:01:57]}  Qc5 {[%clk 0:01:22]} 31. Rb1 {[%clk 0:01:48]}  Reb7 {[%clk 0:01:21]} 0-1


[Site "https://www.chess.com"]

[Event "Titled Tuesday Blitz April 05 Early 2022"]
[White "Jakubowska, Anna"]
[Black "Csonka, Balazs"]
[WhiteFideId "1121952"]
[BlackFideId "742910"]
[WhiteElo "1924"]
[BlackElo "2404"]
[Result "0-1"]
[Round "01"]
[TimeControl "180+1"]
[Date "2022.04.05"]
[WhiteClock "0:00:13"]
[BlackClock "0:00:06"]

1. e4 {[%clk 0:03:00]}  c5 {[%clk 0:02:58]} 2. Nc3 {[%clk 0:02:59]}  e6 {[%clk 0:02:57]} 3. g3 {[%clk 0:02:59]}  Nc6 {[%clk 0:02:53]} 4. Bg2 {[%clk 0:02:57]}  g6 {[%clk 0:02:48]} 5. d3 {[%clk 0:02:55]}  Bg7 {[%clk 0:02:49]} 6. h4 {[%clk 0:02:53]}  Nf6 {[%clk 0:02:47]} 7. Be3 {[%clk 0:02:46]}  d6 {[%clk 0:02:43]} 8. Nge2 {[%clk 0:02:30]}  Rb8 {[%clk 0:02:37]} 9. d4 {[%clk 0:02:17]}  Ng4 {[%clk 0:02:32]} 10. Bg5 {[%clk 0:02:13]}  Qb6 {[%clk 0:02:31]} 11. dxc5 {[%clk 0:02:09]}  dxc5 {[%clk 0:02:31]} 12. O-O {[%clk 0:02:05]}  O-O {[%clk 0:02:23]} 13. Na4 {[%clk 0:01:50]}  Qa5 {[%clk 0:02:16]} 14. b3 {[%clk 0:01:46]}  h6 {[%clk 0:02:07]} 15. Bd2 {[%clk 0:01:42]}  Qd8 {[%clk 0:01:50]} 16. Bc3 {[%clk 0:01:42]}  Qe7 {[%clk 0:01:44]} 17. Bxg7 {[%clk 0:01:40]}  Kxg7 {[%clk 0:01:45]} 18. Qd2 {[%clk 0:01:38]}  b6 {[%clk 0:01:30]} 19. f3 {[%clk 0:01:37]}  Nf6 {[%clk 0:01:27]} 20. c4 {[%clk 0:01:34]}  Rd8 {[%clk 0:01:20]} 21. Qe3 {[%clk 0:01:33]}  Nd4 {[%clk 0:01:20]} 22. Rad1 {[%clk 0:01:31]}  Bd7 {[%clk 0:00:54]} 23. Nac3 {[%clk 0:01:29]}  Bc6 {[%clk 0:00:54]} 24. Kh1 {[%clk 0:01:18]}  Nh5 {[%clk 0:00:46]} 25. f4 {[%clk 0:01:05]}  Nxe2 {[%clk 0:00:39]} 26. Nxe2 {[%clk 0:01:02]}  Rxd1 {[%clk 0:00:40]} 27. Rxd1 {[%clk 0:01:02]}  Rd8 {[%clk 0:00:40]} 28. Qc3+ {[%clk 0:01:01]}  Kg8 {[%clk 0:00:37]} 29. Rd3 {[%clk 0:00:57]}  Rxd3 {[%clk 0:00:11]} 30. Qxd3 {[%clk 0:00:58]}  e5 {[%clk 0:00:11]} 31. Qf3 {[%clk 0:00:50]}  exf4 {[%clk 0:00:05]} 32. gxf4 {[%clk 0:00:48]}  Nf6 {[%clk 0:00:05]} 33. Nc3 {[%clk 0:00:42]}  h5 {[%clk 0:00:05]} 34. Qe3 {[%clk 0:00:40]}  Ng4 {[%clk 0:00:04]} 35. Qe2 {[%clk 0:00:39]}  Qxh4+ {[%clk 0:00:04]} 36. Kg1 {[%clk 0:00:37]}  Qh2+ {[%clk 0:00:04]} 37. Kf1 {[%clk 0:00:37]}  Qxf4+ {[%clk 0:00:05]} 38. Kg1 {[%clk 0:00:37]}  Qh2+ {[%clk 0:00:05]} 39. Kf1 {[%clk 0:00:36]}  Qe5 {[%clk 0:00:04]} 40. Qd3 {[%clk 0:00:21]}  Qf4+ {[%clk 0:00:04]} 41. Kg1 {[%clk 0:00:16]}  Qf2+ {[%clk 0:00:05]} 42. Kh1 {[%clk 0:00:15]}  Qh4+ {[%clk 0:00:05]} 43. Kg1 {[%clk 0:00:15]}  Qf2+ {[%clk 0:00:05]} 44. Kh1 {[%clk 0:00:15]}  Qe1+ {[%clk 0:00:06]} 45. Bf1 {[%clk 0:00:15]}  Nf2+ {[%clk 0:00:05]} 46. Kg2 {[%clk 0:00:13]}  Nxd3 {[%clk 0:00:06]} 0-1


[Site "https://www.chess.com"]

[Event "Titled Tuesday Blitz April 05 Early 2022"]
[White "Karas, Marek"]
[Black "Tsyhanchuk, Stanislav"]
[WhiteFideId "14928558"]
[BlackFideId "13505130"]
[WhiteElo "2271"]
[BlackElo "2078"]
[Result "1-0"]
[Round "01"]
[TimeControl "180+1"]
[Date "2022.04.05"]
[WhiteClock "0:00:58"]
[BlackClock "0:00:18"]

1. d4 {[%clk 0:03:00]}  d5 {[%clk 0:02:59]} 2. Nf3 {[%clk 0:03:00]}  Nf6 {[%clk 0:02:58]} 3. c4 {[%clk 0:03:00]}  c6 {[%clk 0:02:58]} 4. Nc3 {[%clk 0:03:00]}  dxc4 {[%clk 0:02:58]} 5. a4 {[%clk 0:02:54]}  Bf5 {[%clk 0:02:58]} 6. Nh4 {[%clk 0:02:46]}  Bg4 {[%clk 0:02:55]} 7. h3 {[%clk 0:02:46]}  Bh5 {[%clk 0:02:55]} 8. g4 {[%clk 0:02:46]}  Bg6 {[%clk 0:02:55]} 9. Nxg6 {[%clk 0:02:45]}  hxg6 {[%clk 0:02:55]} 10. e3 {[%clk 0:02:46]}  Nbd7 {[%clk 0:02:50]} 11. Bxc4 {[%clk 0:02:46]}  e5 {[%clk 0:02:50]} 12. Qb3 {[%clk 0:02:13]}  Qe7 {[%clk 0:02:07]} 13. Qxb7 {[%clk 0:02:00]}  Rb8 {[%clk 0:02:07]} 14. Qxc6 {[%clk 0:01:59]}  exd4 {[%clk 0:02:05]} 15. Nb5 {[%clk 0:01:56]}  Nxg4 {[%clk 0:01:45]} 16. hxg4 {[%clk 0:01:54]}  Rxh1+ {[%clk 0:01:41]} 17. Qxh1 {[%clk 0:01:54]}  Qb4+ {[%clk 0:01:41]} 18. Bd2 {[%clk 0:01:48]}  Qxc4 {[%clk 0:01:41]} 19. Qe4+ {[%clk 0:01:37]}  Kd8 {[%clk 0:01:34]} 20. Qxd4 {[%clk 0:01:31]}  Qxd4 {[%clk 0:01:31]} 21. Nxd4 {[%clk 0:01:26]}  Rxb2 {[%clk 0:01:24]} 22. Bc3 {[%clk 0:01:24]}  Rb6 {[%clk 0:01:16]} 23. Ba5 {[%clk 0:01:23]}  Bd6 {[%clk 0:01:03]} 24. Bxb6+ {[%clk 0:01:23]}  axb6 {[%clk 0:01:02]} 25. Nb5 {[%clk 0:01:22]}  Bb4+ {[%clk 0:01:01]} 26. Ke2 {[%clk 0:01:22]}  Nc5 {[%clk 0:01:02]} 27. Nd6 {[%clk 0:01:19]}  Ke7 {[%clk 0:00:34]} 28. Nc4 {[%clk 0:01:17]}  Nd7 {[%clk 0:00:33]} 29. Rb1 {[%clk 0:01:11]}  Bc5 {[%clk 0:00:29]} 30. Rb5 {[%clk 0:01:10]}  Ke6 {[%clk 0:00:21]} 31. f4 {[%clk 0:01:02]}  Kd5 {[%clk 0:00:21]} 32. Kd3 {[%clk 0:01:00]}  Kc6 {[%clk 0:00:21]} 33. Ne5+ {[%clk 0:00:59]}  Nxe5+ {[%clk 0:00:20]} 34. fxe5 {[%clk 0:01:00]}  Kd5 {[%clk 0:00:20]} 35. e4+ {[%clk 0:00:59]}  Kxe5 {[%clk 0:00:20]} 36. a5 {[%clk 0:00:59]}  Ke6 {[%clk 0:00:18]} 37. a6 {[%clk 0:00:58]} 1-0


[Site "https://www.chess.com"]